Cogmind - Beta 10.1 @@@ ROGUE MODE // 2021.06.29 @ 13:18:07 // Winter2019/RPGLIKE Player: Farfid Result: Destroyed by H-77 Assassin with Coil Gun Performance ------------- Evolutions (7) 3500 Regions Visited (29) 5800 Robots Destroyed (773) 3865 Value Destroyed (34948) 34948 Prototype IDs (86) 1720 Alien Tech Used (0) 0 Bonus (24096) 24096 TOTAL SCORE: 73929 Bonus ------- Triggered High Security 500 High Alert Combat Kills 16282 Follower Combat Kills 2333 Network Hubs Disabled 400 Met Data Miner 300 Met Imprinter 300 Met Warlord at Base 500 MAIN.C Attacked Warlord 500 Warlord Defense Kill 2722 Built Enhanced Grunts 300 A7 Reached Mainframe 300 Met R17 at Cetus 500 Scanned by Researcher 500 Friendly Fire -1341 Cogmind --------- Core Integrity 0/1950 Matter 1850/1850 Energy 788/940 System Corruption 16% Temperature Cool (0) Movement Hovering (50) Location -3/Testing Parts ------- > --- POWER (3) -------- Graviton Reactor Vortex Chain Reactor > --- PROPULSION (5) --- Cooled Antigrav System Combat Antigrav System Combat Antigrav System Combat Linear Gravjet Combat Linear Gravjet > --- UTILITY (11) ----- Advanced Power Amplifier Experimental Cooling System YI-UF0's Bottomless Matter Pit Advanced Targeting Computer Experimental Core Analyzer Recoil Nullifier Improved Kinecellerator Improved Weapon Cycler Reaction Control System Advanced Remote Shield > --- WEAPON (4) ------- Heavy Gauss Cannon Omega Cannon Tesla Bomb Launcher > --- INVENTORY (5) ---- Protomatter-65 Protomatter-53 Advanced Terrain Scanner Heavy Gauss Cannon Dirty Bomb Trap Peak State ------------ > --- POWER ------------ Graviton Reactor Vortex Chain Reactor > --- PROPULSION ------- Cooled Antigrav System Combat Antigrav System Combat Antigrav System Combat Linear Gravjet Combat Linear Gravjet > --- UTILITY ---------- Advanced Power Amplifier Experimental Cooling System YI-UF0's Bottomless Matter Pit Advanced Targeting Computer Experimental Core Analyzer Recoil Nullifier Improved Kinecellerator Improved Weapon Cycler Reaction Control System Advanced Remote Shield Long-range Tractor Beam > --- WEAPON ----------- Heavy Gauss Cannon Omega Cannon Tesla Bomb Launcher > --- INVENTORY -------- Advanced Terrain Scanner Heavy Gauss Cannon Heavy Gauss Cannon Dirty Bomb Trap [Rating: 185] Favorites ----------- Power Vortex Chain Reactor Engine Improved Deuterium Engine Power Core Light Fission Core Reactor Vortex Chain Reactor Propulsion Combat Airjet Wheel Armored Wheel Hover Unit Combat Airjet Utility YI-UF0's Bottomless Matter Pit Device Long-range Tractor Beam Storage YI-UF0's Bottomless Matter Pit Processor Improved Targeting Computer Protection Medium Regenerative Plating Weapon Improved Heavy Machine Gun Ballistic Gun Improved Heavy Machine Gun Ballistic Cannon Heavy Gauss Cannon Launcher Tesla Bomb Launcher Build | -11 -10 -10 -9 -9 -9 -8 -8 -7 -7 -7 -7 -6 -6 -6 -6 -6 -5 -5 -5 -5 -5 -4 -4 -4 -4 -4 -4 -3 -3 ------- Run | Scr Mat Min Mat Min Exi Min Mat Fac Low Low Zio Pro Fac Low Low Dat Pro Fac Upp Upp War Pro Fac Ext Cet Arc Hub Res Tes Slots Evolved 19 | 3 . . 3 . . . . 2 . . 1 1 . 1 . . . 3 . . 2 1 . . 1 . . . 1 Power 2 | . . . . . . . . . . . . . . . . . . 1 . . . . . . . . . . 1 Propulsion 4 | 1 . . 1 . . . . . . . . 1 . . . . . . . . 1 . . . . . . . . Utility 10 | 1 . . 1 . . . . 1 . . 1 . . 1 . . . 2 . . 1 1 . . 1 . . . . Weapon 3 | 1 . . 1 . . . . 1 . . . . . . . . . . . . . . . . . . . . . Parts Attached 164 | 5 7 5 11 7 . . 6 5 . . 1 6 16 3 2 . . 18 . 1 12 5 18 3 4 . 5 6 18 Power 15 | 1 . 1 2 1 . . . 1 . . . . 3 . . . . 2 . . 1 . . . . . . . 3 Engine 7 | 1 . 1 2 1 . . . 1 . . . . 1 . . . . . . . . . . . . . . . . Core 3 | . . . . . . . . . . . . . 2 . . . . 1 . . . . . . . . . . . Reactor 5 | . . . . . . . . . . . . . . . . . . 1 . . 1 . . . . . . . 3 Propulsion 29 | 2 1 2 2 1 . . 3 . . . . 3 4 . . . . 2 . . 2 . 5 . . . . . 2 Treads . | . . . . . . . . . . . . . . . . . . . . . . . . . . . . . . Leg . | . . . . . . . . . . . . . . . . . . . . . . . . . . . . . . Wheel 8 | 2 1 2 2 1 . . . . . . . . . . . . . . . . . . . . . . . . . Hover 21 | . . . . . . . 3 . . . . 3 4 . . . . 2 . . 2 . 5 . . . . . 2 Flight . | . . . . . . . . . . . . . . . . . . . . . . . . . . . . . . Utility 58 | . 1 1 1 2 . . 1 1 . . 1 . 1 3 2 . . 7 . . 7 5 6 3 4 . 5 2 5 Device 50 | . . . 1 . . . 1 1 . . 1 . 1 3 2 . . 7 . . 6 5 5 3 2 . 5 2 5 Storage 1 | . . . . 1 . . . . . . . . . . . . . . . . . . . . . . . . . Processor 5 | . 1 1 . 1 . . . . . . . . . . . . . . . . 1 . 1 . . . . . . Hackware . | . . . . . . . . . . . . . . . . . . . . . . . . . . . . . . Protection 2 | . . . . . . . . . . . . . . . . . . . . . . . . . 2 . . . . Artifact . | . . . . . . . . . . . . . . . . . . . . . . . . . . . . . . Weapon 62 | 2 5 1 6 3 . . 2 3 . . . 3 8 . . . . 7 . 1 2 . 7 . . . . 4 8 Energy Gun . | . . . . . . . . . . . . . . . . . . . . . . . . . . . . . . Energy Cannon . | . . . . . . . . . . . . . . . . . . . . . . . . . . . . . . Ballistic Gun 25 | 2 4 . 3 1 . . 2 1 . . . 2 7 . . . . 2 . . . . . . . . . 1 . Ballistic Cannon 27 | . 1 1 3 1 . . . 2 . . . 1 . . . . . 3 . 1 1 . 7 . . . . 2 4 Launcher 10 | . . . . 1 . . . . . . . . 1 . . . . 2 . . 1 . . . . . . 1 4 Special Weapon . | . . . . . . . . . . . . . . . . . . . . . . . . . . . . . . Impact Weapon . | . . . . . . . . . . . . . . . . . . . . . . . . . . . . . . Slashing Weapon . | . . . . . . . . . . . . . . . . . . . . . . . . . . . . . . Piercing Weapon . | . . . . . . . . . . . . . . . . . . . . . . . . . . . . . . Special Melee Weapon . | . . . . . . . . . . . . . . . . . . . . . . . . . . . . . . Unidentified Prototypes 25 | . . . . 2 . . . . . . . . 3 . . . . 1 . . 6 2 1 . 2 . 2 3 3 Parts Lost 1 | . . . . . . . . . . . . . . . . . . . . . . . . . . . . . 1 Power . | . . . . . . . . . . . . . . . . . . . . . . . . . . . . . . Propulsion . | . . . . . . . . . . . . . . . . . . . . . . . . . . . . . . Utility 1 | . . . . . . . . . . . . . . . . . . . . . . . . . . . . . 1 Weapon . | . . . . . . . . . . . . . . . . . . . . . . . . . . . . . . Highest Loss Streak 1 | . . . . . . . . . . . . . . . . . . . . . . . . . . . . . 1 Average Slot Usage (%) 97 | . 78 98 99 99 100 100 99 100 100 100 100 99 97 100 100 100 100 99 100 100 96 94 91 95 95 95 95 94 94 Engine 3 | . 14 14 11 10 10 10 10 9 8 8 7 7 . . . . . . . . . . . . . . . . . Core 2 | . . . . . . . . . . . . . 6 6 6 6 6 5 5 5 1 . . . . . . . . Reactor 2 | . . . . . . . . . . . . . . . . . . 5 5 5 5 4 4 4 4 4 4 4 7 Wheel 4 | . 28 28 30 30 30 30 10 . . . . . . . . . . . . . . . . . . . . . . Hover 19 | . . . . . . . 19 28 25 25 23 24 26 26 26 26 26 24 22 22 23 24 20 23 22 22 22 22 21 Device 23 | . . . . 10 10 10 10 11 16 16 22 22 21 24 26 26 26 27 33 33 32 30 33 33 32 31 35 36 34 Storage 5 | . . . . 2 10 10 10 9 8 8 7 7 7 6 6 6 6 5 5 5 5 4 4 4 4 4 4 4 4 Processor 8 | . 7 26 22 17 10 10 10 9 8 8 7 7 7 6 6 6 6 5 5 5 5 9 9 9 9 9 9 9 8 Ballistic Gun 9 | . 26 1 8 2 . . 11 13 16 16 15 14 24 26 26 26 26 12 5 4 . . . . . . . . . Ballistic Cannon 14 | . 1 26 24 27 30 30 18 18 16 16 15 14 2 . . . . 10 16 17 21 19 18 19 18 18 18 17 13 Naked Turns . | . . . . . . . . . . . . . . . . . . . . . . . . . . . . . . Heaviest Build 132 | 6 8 9 21 31 31 31 31 40 40 40 43 45 43 40 35 35 35 69 67 75 102 102 102 111 119 119 119 112 132 Greatest Support 154 | 25 25 27 41 41 39 39 39 43 43 43 43 76 90 90 90 90 90 101 101 101 121 121 149 149 149 149 149 149 154 Greatest Overweight (x) 1 | . . . . . . . 1 . . . . 1 . . . . . . . . . . . . . . . . . Average Overweight (x) . | . . . . . . . . . . . . . . . . . . . . . . . . . . . . . . Largest Inventory Capacity 5 | 1 1 1 1 1 1 1 1 1 2 2 2 4 4 4 4 4 4 4 4 4 4 4 4 5 5 5 5 5 5 Average Capacity 3 | 1 1 1 1 1 1 1 1 1 1 2 2 2 4 4 4 4 4 4 4 4 4 4 4 4 5 5 5 5 5 Most Carried 5 | . 1 1 1 1 1 1 1 1 2 2 2 4 4 4 4 3 3 4 4 4 4 4 4 5 5 5 5 5 5 Average Carried 2 | . . . . . 1 1 1 1 1 2 2 2 2 2 3 3 3 3 4 3 3 3 3 3 5 5 5 4 4 Final Capacity 5 | 1 1 1 1 1 1 1 1 1 2 2 2 4 4 4 4 4 4 4 4 4 4 4 4 5 5 5 5 5 5 Final Carried 5 | . . . . 1 1 1 1 1 2 2 2 4 3 2 3 3 3 4 4 4 4 4 3 5 5 5 5 5 5 Class Distribution -------------------- 38% | Gunner 15% | Scout 11% | Commander-Gunner 11% | Scavenger-Gunner 8% | Scavenger-Scout 5% | Mutant 3% | Generator-Mutant Dominant Class ---------------- Mutant | -10/Materials Mutant | -10/Mines Gunner | -9/Materials Gunner | -9/Mines Gunner | -9/Exiles Gunner | -8/Mines Gunner | -8/Materials Gunner | -7/Factory Commander-Gunner | -7/Lower Caves Commander-Gunner | -7/Lower Caves Commander-Gunner | -7/Zion Commander-Gunner | -6/Proximity Caves Gunner | -6/Factory Gunner | -6/Lower Caves Gunner | -6/Lower Caves Gunner | -6/Data Miner Gunner | -5/Proximity Caves Scavenger-Gunner | -5/Factory Scavenger-Scout | -5/Upper Caves Scavenger-Scout | -5/Upper Caves Gunner | -5/Warlord Scout | -4/Proximity Caves Scout | -4/Factory Commander-Gunner | -4/Extension Gunner | -4/Cetus Commander-Gunner | -4/Archives Commander-Scout | -4/Hub_04(d) Scout | -3/Research Generator-Mutant | -3/Testing Resources | -11 -10 -10 -9 -9 -9 -8 -8 -7 -7 -7 -7 -6 -6 -6 -6 -6 -5 -5 -5 -5 -5 -4 -4 -4 -4 -4 -4 -3 -3 ----------- Run | Scr Mat Min Mat Min Exi Min Mat Fac Low Low Zio Pro Fac Low Low Dat Pro Fac Upp Upp War Pro Fac Ext Cet Arc Hub Res Tes Matter Collected 24565 | 235 287 367 562 974 250 580 831 1096 666 252 10 602 2040 725 210 . 354 2300 407 642 1033 710 2024 1620 544 117 768 382 3977 Remotely 22643 | . . . 22 974 . 580 831 1096 666 252 10 602 1977 717 210 . 354 2209 407 635 1033 710 2024 1620 544 117 768 382 3903 Salvage Created 28055 | . 428 249 862 783 . 422 634 1676 495 168 . 510 2997 823 110 . 287 2295 209 318 986 546 1651 1557 334 117 1277 415 7906 Parts 1240 | . 32 14 49 30 . 27 27 112 32 7 . 16 137 23 10 . 18 91 17 10 45 33 46 49 11 7 62 17 318 Haulers Intercepted 30 | . 2 . 3 . . . 3 5 . . . . 3 . . . . 3 . . . 1 4 2 . . 2 1 1 Recyclers Shooed 10 | . . . 1 . . . . 2 . . . . 3 . . . . 1 . . . . 1 2 . . . . . Parts Field Recycled . | . . . . . . . . . . . . . . . . . . . . . . . . . . . . . . Retrieved Matter . | . . . . . . . . . . . . . . . . . . . . . . . . . . . . . . Parts Self-Destructed 247 | . . . . . . . . . 33 9 . 23 . 23 11 . 18 . 8 11 78 33 . . . . . . . Prevented 33 | . . . . . . . . . . . . 2 . . 1 . . . . 2 28 . . . . . . . . Kills | -11 -10 -10 -9 -9 -9 -8 -8 -7 -7 -7 -7 -6 -6 -6 -6 -6 -5 -5 -5 -5 -5 -4 -4 -4 -4 -4 -4 -3 -3 ------- Run | Scr Mat Min Mat Min Exi Min Mat Fac Low Low Zio Pro Fac Low Low Dat Pro Fac Upp Upp War Pro Fac Ext Cet Arc Hub Res Tes Combat Hostiles Destroyed 588 | . 10 15 17 4 . 10 16 23 20 5 . 14 49 17 5 . 10 48 11 15 26 25 27 27 11 4 15 9 155 Guns 143 | . 10 1 4 . . . 7 6 8 2 . 5 37 17 5 . 10 21 4 6 . . . . . . . . . Cannons 328 | . . 14 13 4 . 10 9 17 12 3 . 9 8 . . . . 20 7 9 24 24 27 27 11 4 15 9 52 AOE 78 | . . . . . . . . . . . . . 4 . . . . 7 . . 2 . . . . . . . 65 Classes Destroyed 24 | . 3 4 5 . . . 1 1 1 . . 1 2 1 . . . . 1 . 1 1 . . . . . . 2 Worker 36 | . . 3 2 2 . . . 4 . . . . 10 . . . . 5 . . . . 1 1 . . 6 . 2 Builder 21 | . . . 1 . . . . 12 . . . . 4 . . . . . . . . . . . . . 2 . 2 Tunneler 7 | . . 1 . 1 . 1 . 1 . . . . 2 . . . . . . . . . . . . . 1 . . Hauler 30 | . 2 . 3 . . . 3 5 . . . . 3 . . . . 3 . . . 1 4 2 . . 2 1 1 Recycler 46 | . . 1 4 6 . 5 . 5 . . . . 8 . . . . 3 . . . . 3 6 . . 2 . 3 Minesweeper 1 | . . . . . . . . . . . . . . . . . . . . . . 1 . . . . . . . Mechanic 12 | . . . . . . . . . . . . . 2 . . . . . . . 1 . . 1 . . . . 8 Operator 9 | . . . 1 . . . 1 1 . . . . . . . . . 1 . . . . . 2 . . 2 . 1 Watcher 11 | . . . 1 . . . . . . . . . 2 . . . . 2 . . . . . 2 . . 2 . 2 Swarmer 113 | . 2 6 4 . . 8 . 6 9 1 . 3 12 1 . . 8 5 3 6 7 9 7 5 1 . . 6 4 Saboteur 13 | . . . . . . . . . . . . . 1 . . . . 1 . . 3 . . . . . . . 8 Grunt 251 | . 8 2 10 2 . 2 10 9 6 2 . 5 20 12 3 . . 33 4 6 8 13 6 10 . . 10 . 70 Brawler 20 | . . . 1 . . . 1 . 2 1 . 1 1 . 1 . . 1 . 1 . . . . . . . . 10 Duelist 16 | . . . . . . . . . 1 . . 3 1 1 . . . 2 . . . . 1 . . . . . 7 Protector 13 | . . . . . . . . . . . . 1 . . . . . . . . 1 . . . . . . . 11 Researcher 10 | . . . . . . . . . . . . . . . . . . . . . . . . . . . . . 10 Sentry 54 | . . . 2 2 . . 4 5 2 1 . 1 4 1 . . 1 3 1 1 . 2 8 6 . 4 3 3 . Hunter 41 | . . . . . . . 1 2 . . . . 7 . 1 . . . . . 2 . 2 4 2 . . . 20 Programmer 34 | . . . . . . . . 1 . . . . 3 1 . . . 3 . 1 4 . 2 . . . 2 . 17 Behemoth 5 | . . . . . . . . . . . . . . 1 . . 1 . . . . 1 1 1 . . . . . Cetus Guard 8 | . . . . . . . . . . . . . . . . . . . . . . . . . 8 . . . . Investigator 1 | . . . . . . . . . . . . . . . . . . . . . . . . . . . . . 1 Striker 4 | . . . . . . . . . . . . . . . . . . . . . . . . . . . . . 4 Executioner 5 | . . . . . . . . . . . . . . . . . . . . . 1 . . . . . . . 4 Assembled 7 | . . 7 . . . . . . . . . . . . . . . . . . . . . . . . . . . Thug 1 | . . . . . . . . . . . . . . . . . . . . . . . . 1 . . . . . Fireman 3 | . . . . . . . . . . . . . . . . . . . 3 . . . . . . . . . . Best Kill Streak 33 | . 6 7 9 2 . 5 11 20 8 3 . 5 11 4 2 . 9 14 7 11 8 12 9 7 7 4 14 4 33 Combat Bots Only 31 | . 6 7 7 2 . 4 8 6 8 3 . 5 5 4 2 . 9 12 7 11 8 12 8 7 7 4 4 4 31 Max Kills in Single Turn 8 | . 2 1 2 1 . 2 1 3 1 1 . 1 8 2 1 . 2 2 2 2 2 2 2 2 1 1 8 2 6 Gunslinging 1 | . 1 . 1 . . . . . . . . . 1 1 . . 1 1 . . . . . . . . . . . Exploded 6 | . . . . . . . . . . . . . 3 . . . . 1 . . 1 . . . . . . . 6 Melee . | . . . . . . . . . . . . . . . . . . . . . . . . . . . . . . Uniques/NPCs Destroyed 1 | . . . . 1 . . . . . . . . . . . . . . . . . . . . . . . . . YI-UF0 (-9/Mines) Combat | -11 -10 -10 -9 -9 -9 -8 -8 -7 -7 -7 -7 -6 -6 -6 -6 -6 -5 -5 -5 -5 -5 -4 -4 -4 -4 -4 -4 -3 -3 -------- Run | Scr Mat Min Mat Min Exi Min Mat Fac Low Low Zio Pro Fac Low Low Dat Pro Fac Upp Upp War Pro Fac Ext Cet Arc Hub Res Tes Damage Taken 17606 | . 393 659 274 172 . 191 375 743 587 222 . 553 1286 727 164 . 162 1012 213 467 327 962 865 745 419 46 506 212 5324 Core 13890 | . 315 535 220 133 . 144 292 585 463 170 . 439 1001 595 134 . 128 790 175 367 257 759 681 602 327 29 391 168 4190 Absorbed by Shields 3754 | . . . . . . . . . . . . . . . . . . . . . 92 38 . 218 185 14 157 60 2990 Redirected to Core 12537 | . 262 414 175 133 . 144 267 494 414 156 . 402 934 460 103 . 116 776 123 351 233 687 651 494 318 29 391 156 3854 Core Remaining (%) 79 | 100 . 40 . . . 39 98 . . . . 88 . . . . 84 . . . . 100 . . . . 83 . . Volleys Fired 1136 | . 28 41 39 33 . 24 41 64 38 14 . 35 113 43 18 . 18 94 17 28 31 43 61 54 18 5 27 13 196 Largest 4 | . 2 2 3 3 . 3 3 4 4 4 . 4 4 4 4 . 4 4 4 4 4 4 4 4 4 4 4 4 4 Hottest 244 | . 40 70 117 117 . 117 117 146 146 146 . 146 146 60 60 . 60 186 186 237 237 237 244 244 244 244 244 244 244 Shots Fired 3693 | . 56 82 117 74 . 72 123 217 146 56 . 140 431 170 71 . 71 343 65 109 118 166 197 216 72 20 96 46 419 Gun 1300 | . 56 6 21 18 . . 60 89 70 28 . 70 361 170 71 . 71 168 16 25 . . . . . . . . . Cannon 2303 | . . 76 96 56 . 72 63 128 76 28 . 70 70 . . . . 167 49 84 116 166 197 216 72 20 96 46 339 Launcher 90 | . . . . . . . . . . . . . . . . . . 8 . . 2 . . . . . . . 80 Special . | . . . . . . . . . . . . . . . . . . . . . . . . . . . . . . Kinetic 3603 | . 56 82 117 74 . 72 123 217 146 56 . 140 431 170 71 . 71 335 65 109 116 166 197 216 72 20 96 46 339 Thermal . | . . . . . . . . . . . . . . . . . . . . . . . . . . . . . . Explosive 39 | . . . . . . . . . . . . . . . . . . 8 . . . . . . . . . . 31 Electromagnetic 51 | . . . . . . . . . . . . . . . . . . . . . 2 . . . . . . . 49 Robot Hit Streak 67 | . 13 17 21 9 . 11 15 20 11 18 . 27 39 30 22 . 36 43 35 31 27 36 42 34 67 16 24 22 58 Robot Miss Streak 5 | . 5 3 2 4 . 3 3 3 2 2 . 3 2 1 1 . 2 1 2 2 1 2 2 1 1 . 1 1 1 Penetration Max 1 | . . . . . . . . . . . . 1 1 . . . . . 1 1 1 1 1 1 1 . 1 1 1 Secondary Targets 24 | . 4 . 2 . . . . . . . . . 8 4 2 . 2 2 . . . . . . . . . . . Max Gunslinging Chain 1 | . 1 . 1 . . . . . . . . . 1 1 1 . 1 1 . . . . . . . . . . . Shots Hit Robots 2444 | . 41 52 68 46 . 38 78 135 89 43 . 96 313 141 58 . 50 232 38 76 73 107 126 134 49 9 53 24 275 Core Hits 1392 | . 20 26 32 22 . 17 32 73 32 11 . 36 146 42 16 . 16 118 16 25 40 46 57 68 26 8 56 13 398 Critical Hits 280 | . . 1 2 . . 1 3 16 7 2 . 5 9 2 2 . . 19 7 10 23 30 30 38 12 1 15 11 34 Critical Kills 91 | . . 1 2 . . . 1 5 4 1 . 1 5 1 . . . 4 3 3 9 9 9 7 6 1 8 3 8 Critical Parts Destroyed 144 | . . . . . . 1 2 11 2 . . 4 4 1 2 . . 13 3 5 11 13 13 24 4 . 4 4 23 Melee Attacks . | . . . . . . . . . . . . . . . . . . . . . . . . . . . . . . Impact . | . . . . . . . . . . . . . . . . . . . . . . . . . . . . . . Slashing . | . . . . . . . . . . . . . . . . . . . . . . . . . . . . . . Piercing . | . . . . . . . . . . . . . . . . . . . . . . . . . . . . . . Sneak Attacks . | . . . . . . . . . . . . . . . . . . . . . . . . . . . . . . Combat Hostiles . | . . . . . . . . . . . . . . . . . . . . . . . . . . . . . . Follow-up Attacks . | . . . . . . . . . . . . . . . . . . . . . . . . . . . . . . Damage Inflicted 106814 | . 504 974 1371 871 . 740 1473 3317 1875 806 . 2320 8756 3210 1236 . 1044 8058 1619 3072 3419 4114 6759 7497 2288 464 3922 1025 36080 Guns 20816 | . 504 50 186 231 . . 759 1251 922 382 . 896 5726 3210 1236 . 1044 3413 375 631 . . . . . . . . . Cannons 57046 | . . 924 1185 640 . 740 714 2066 953 424 . 1424 1239 . . . . 3559 1244 2441 3222 4114 6321 7497 2288 464 2902 1025 11660 Explosions 28952 | . . . . . . . . . . . . . 1791 . . . . 1086 . . 197 . 438 . . . 1020 . 24420 Melee . | . . . . . . . . . . . . . . . . . . . . . . . . . . . . . . Ramming . | . . . . . . . . . . . . . . . . . . . . . . . . . . . . . . Kinetic 77862 | . 504 974 1371 871 . 740 1473 3317 1875 806 . 2320 6965 3210 1236 . 1044 6972 1619 3072 3222 4114 6321 7497 2288 464 2902 1025 11660 Thermal 2673 | . . . . . . . . . . . . . . . . . . 194 . . . . . . . . 59 . 2420 Explosive 14342 | . . . . . . . . . . . . . 1791 . . . . 892 . . . . 438 . . . . . 11221 Electromagnetic 11937 | . . . . . . . . . . . . . . . . . . . . . 197 . . . . . 961 . 10779 Impact . | . . . . . . . . . . . . . . . . . . . . . . . . . . . . . . Slashing . | . . . . . . . . . . . . . . . . . . . . . . . . . . . . . . Piercing . | . . . . . . . . . . . . . . . . . . . . . . . . . . . . . . Highest Corruption 16 | . . . . . . . . . . . . . 4 4 4 4 4 . . 1 3 . 2 2 2 2 4 . 16 Average Corruption 3 | . . . . . . . . . . . . . 3 4 4 4 4 . . 1 2 . 2 2 2 2 3 . 6 Corruption Purged . | . . . . . . . . . . . . . . . . . . . . . . . . . . . . . . Effects 161 | . . . . . . . . . . . . . 36 24 12 1 13 . . . . . 10 13 1 3 10 . 38 Message Errors 36 | . . . . . . . . . . . . . 10 4 2 . 3 . . . . . 3 8 1 . 1 . 4 Matter Fused 23 | . . . . . . . . . . . . . 5 3 4 . 2 . . . . . . . . . 3 . 6 Heat Flow Errors 18 | . . . . . . . . . . . . . 2 . 2 . 2 . . . . . 2 2 . 1 1 . 6 Energy Discharges 16 | . . . . . . . . . . . . . 4 5 1 1 2 . . . . . . 1 . . 2 . . Data Loss (minor) 11 | . . . . . . . . . . . . . 2 1 1 . 1 . . . . . 2 . . 1 . . 3 Data Loss (major) 1 | . . . . . . . . . . . . . . . . . . . . . . . . . . . . . 1 Misfires 1 | . . . . . . . . . . . . . . . . . . . . . . . . . . . . . 1 Misdirections 5 | . . . . . . . . . . . . . . . . . . . . . . . . . . . . . 5 Targeting Errors 40 | . . . . . . . . . . . . . 10 9 1 . 2 . . . . . 1 2 . 1 3 . 11 Weapon Failures 10 | . . . . . . . . . . . . . 3 2 1 . 1 . . . . . 2 . . . . . 1 Overload Shots . | . . . . . . . . . . . . . . . . . . . . . . . . . . . . . . Overflow Damage 3862 | . . 30 17 1 . 19 . 42 52 . . 69 223 . . . . 173 94 161 47 78 316 236 26 2 236 . 2040 Projectiles 2761 | . . 30 17 1 . 19 . 42 52 . . 69 1 . . . . 109 94 161 47 78 226 236 26 2 216 . 1335 Explosions 1101 | . . . . . . . . . . . . . 222 . . . . 64 . . . . 90 . . . 20 . 705 Melee . | . . . . . . . . . . . . . . . . . . . . . . . . . . . . . . Knockbacks 328 | . . 14 9 1 . 10 3 16 6 1 . 11 7 . . . . 22 13 17 23 21 22 25 4 . 28 3 72 Impact . | . . . . . . . . . . . . . . . . . . . . . . . . . . . . . . Kinetic 293 | . . 12 8 1 . 9 3 13 6 1 . 10 6 . . . . 19 12 16 21 20 19 23 4 . 24 3 63 Secondary 35 | . . 2 1 . . 1 . 3 . . . 1 1 . . . . 3 1 1 2 1 3 2 . . 4 . 9 Self-Inflicted Damage 393 | . . . . . . . . . . . . . . . . . . . . . . . . . . . 101 . 292 Shots 6 | . . . . . . . . . . . . . . . . . . . . . . . . . . . 1 . 5 Rammed . | . . . . . . . . . . . . . . . . . . . . . . . . . . . . . . Targets Rammed . | . . . . . . . . . . . . . . . . . . . . . . . . . . . . . . Kicked . | . . . . . . . . . . . . . . . . . . . . . . . . . . . . . . Crushed . | . . . . . . . . . . . . . . . . . . . . . . . . . . . . . . Highest Temperature 397 | . 3 61 261 54 . 99 63 190 201 220 . 132 198 . 161 . 237 180 148 205 131 133 261 211 322 397 125 116 175 Average Temperature 53 | . 2 25 50 19 . 21 14 38 70 86 . 48 47 . 89 . 118 37 60 62 59 61 45 71 135 134 51 55 61 Received Heat Transfer 3978 | . 195 243 57 63 . 99 207 213 144 105 . 87 330 213 63 . 9 411 54 162 59 292 87 134 60 7 100 16 568 Effects 1 | . . . . . . . . . . . . . . . . . . . . 1 . . . . . . . . . Energy Bleed 1 | . . . . . . . . . . . . . . . . . . . . 1 . . . . . . . . . Siege Activations . | . . . . . . . . . . . . . . . . . . . . . . . . . . . . . . Robots Corrupted 39 | . . . . . . . . . . . . . . . . . . . . . . . . . . . . . 39 Combat Hostiles 38 | . . . . . . . . . . . . . . . . . . . . . . . . . . . . . 38 Parts Fried 78 | . . . 2 . . . . . . . . . . . . . . . . . . . . . . . 2 . 74 Impact Corruptions 10 | . . . 1 . . . . . . . . . . . . . . . . . . 1 3 . . . 1 . 4 Robots Melted . | . . . . . . . . . . . . . . . . . . . . . . . . . . . . . . Combat Hostiles . | . . . . . . . . . . . . . . . . . . . . . . . . . . . . . . Parts Melted . | . . . . . . . . . . . . . . . . . . . . . . . . . . . . . . Heat Transferred 2055 | . . . . . . . . . . . . . . . . . . 100 . . . . . . . . 50 . 1905 Parts Sabotaged . | . . . . . . . . . . . . . . . . . . . . . . . . . . . . . . Parts Stolen . | . . . . . . . . . . . . . . . . . . . . . . . . . . . . . . Parts Stripped . | . . . . . . . . . . . . . . . . . . . . . . . . . . . . . . Power Chain Reactions 10 | . . . . . . . . . . . . . . . . . . . . . . . . . . . 1 . 9 Missiles Intercepted . | . . . . . . . . . . . . . . . . . . . . . . . . . . . . . . Alert | -11 -10 -10 -9 -9 -9 -8 -8 -7 -7 -7 -7 -6 -6 -6 -6 -6 -5 -5 -5 -5 -5 -4 -4 -4 -4 -4 -4 -3 -3 ------- Run | Scr Mat Min Mat Min Exi Min Mat Fac Low Low Zio Pro Fac Low Low Dat Pro Fac Upp Upp War Pro Fac Ext Cet Arc Hub Res Tes Peak Influence 5393 | . 313 306 506 272 . 318 432 1219 . . . . 1283 . . . . 1758 . . . . 970 1219 925 576 2546 1699 5393 Initial 1336 | . . 121 48 127 . . 78 105 . . . . 116 . . . . 53 . . . . 119 311 682 370 201 1336 955 Average 817 | . 158 211 269 146 . 134 223 629 . . . . 566 . . . . 861 . . . . 542 610 867 539 1279 1541 3054 Maximum Alert Level 5 | . 1 1 2 1 . 1 2 4 . . . . 4 . . . . 5 . . . . 3 4 3 2 5 5 5 Low Security (%) 19 | 100 61 44 22 79 . 68 48 11 . . . . 9 . . . . 2 . . . . 12 . . . . . . Level 1 23 | . 38 55 58 20 . 31 44 32 . . . . 35 . . . . 19 . . . . 16 14 . 11 3 . . Level 2 19 | . . . 18 . . . 6 13 . . . . 23 . . . . 18 . . . . 47 64 5 88 11 . . Level 3 13 | . . . . . . . . 23 . . . . 16 . . . . 29 . . . . 24 11 94 . 10 . 4 Level 4 11 | . . . . . . . . 19 . . . . 15 . . . . 19 . . . . . 7 . . 65 55 18 Level 5 2 | . . . . . . . . . . . . . . . . . . 10 . . . . . . . . 9 44 2 High Security 7 | . . . . . . . . . . . . . . . . . . . . . . . . . . . . . 74 Max Security . | . . . . . . . . . . . . . . . . . . . . . . . . . . . . . . Sterilizations 1 | . . . . . . . . . . . . . . . . . . . . . . . . . . . . . 1 Squads Dispatched 100 | . 2 . 4 . . . 2 8 . . . 1 13 . 1 . . 13 . . . . 5 9 . . 4 . 38 Investigation 22 | . 1 . 2 . . . . 2 . . . . 7 . 1 . . 4 . . . . 3 2 . . . . . Extermination 6 | . . . . . . . . 1 . . . . 2 . . . . 1 . . . . 1 . . . . . 1 Reinforcement 29 | . 1 . 2 . . . 2 3 . . . . 3 . . . . 5 . . . . 1 6 . . 2 . 4 Assault 40 | . . . . . . . . . . . . 1 1 . . . . 2 . . . . . 1 . . 2 . 33 Garrison 3 | . . . . . . . . 2 . . . . . . . . . 1 . . . . . . . . . . . Intercept . | . . . . . . . . . . . . . . . . . . . . . . . . . . . . . . Construction Impeded 6 | . . . . . . . . . . . . . 1 . . . . 1 . . . . 1 1 . . 1 . 1 Haulers Reinforced 5 | . . . . . . . . 2 . . . . 2 . . . . 1 . . . . . . . . . . . Stealth | -11 -10 -10 -9 -9 -9 -8 -8 -7 -7 -7 -7 -6 -6 -6 -6 -6 -5 -5 -5 -5 -5 -4 -4 -4 -4 -4 -4 -3 -3 --------- Run | Scr Mat Min Mat Min Exi Min Mat Fac Low Low Zio Pro Fac Low Low Dat Pro Fac Upp Upp War Pro Fac Ext Cet Arc Hub Res Tes Distress Signals 22 | . . . 3 . . 1 1 1 . . . . 1 . . . . 2 . . . . 3 . 2 . 2 4 2 Communications Jammed . | . . . . . . . . . . . . . . . . . . . . . . . . . . . . . . Distress Signals . | . . . . . . . . . . . . . . . . . . . . . . . . . . . . . . Times Spotted 871 | . 13 18 21 6 . 16 19 36 23 6 . 20 55 17 8 . 13 58 12 17 54 27 39 65 17 5 40 21 245 Peak Tracking Total 25 | . 6 4 6 2 . 4 5 8 9 3 . 8 7 5 3 . 4 6 7 9 12 7 5 9 9 1 19 7 25 Tactical Retreats 34 | . . 3 . . . 2 . 3 1 . . 1 1 1 3 . 2 . 1 1 . 2 2 3 . . 2 2 4 Traps | -11 -10 -10 -9 -9 -9 -8 -8 -7 -7 -7 -7 -6 -6 -6 -6 -6 -5 -5 -5 -5 -5 -4 -4 -4 -4 -4 -4 -3 -3 ------- Run | Scr Mat Min Mat Min Exi Min Mat Fac Low Low Zio Pro Fac Low Low Dat Pro Fac Upp Upp War Pro Fac Ext Cet Arc Hub Res Tes Traps Triggered 14 | . 1 . . . . . . 1 . . . . 1 . . . . . . . . . 2 4 . . 2 . 3 Indirectly 4 | . . . . . . . . . . . . . . . . . . . . . . . . . . . 2 . 2 Trap Hack Attempts . | . . . . . . . . . . . . . . . . . . . . . . . . . . . . . . Triggered . | . . . . . . . . . . . . . . . . . . . . . . . . . . . . . . Disarmed . | . . . . . . . . . . . . . . . . . . . . . . . . . . . . . . Reprogrammed . | . . . . . . . . . . . . . . . . . . . . . . . . . . . . . . Reused 1 | . . . . . . . . . . . . . 1 . . . . . . . . . . . . . . . . Traps Extracted . | . . . . . . . . . . . . . . . . . . . . . . . . . . . . . . Installed 3 | . . . . . . . . . . . . . 1 . . . . . . . . 2 . . . . . . . Triggered 17 | . . 1 . . . . . . 1 . . 3 1 . 1 . . . 1 4 5 . . . . . . . . Machines | -11 -10 -10 -9 -9 -9 -8 -8 -7 -7 -7 -7 -6 -6 -6 -6 -6 -5 -5 -5 -5 -5 -4 -4 -4 -4 -4 -4 -3 -3 ---------- Run | Scr Mat Min Mat Min Exi Min Mat Fac Low Low Zio Pro Fac Low Low Dat Pro Fac Upp Upp War Pro Fac Ext Cet Arc Hub Res Tes Machines Disabled 82 | . 1 . . 5 . 1 1 2 . . . . 11 . . . . 13 1 3 2 1 4 3 . 1 18 . 15 Max in Single Turn 7 | . 1 . . 2 . 1 1 1 . . . . 5 . . . . 5 1 2 1 1 1 . . . 7 . 2 Garrison Access 5 | . . . . . . . . 1 . . . . 1 . . . . 1 . . . . 1 . . . 1 . . Network Hub 2 | . . . . . . . . . . . . . . . . . . . . . . . . . . . 2 . . Machines Sabotaged . | . . . . . . . . . . . . . . . . . . . . . . . . . . . . . . Garrisons Compromised . | . . . . . . . . . . . . . . . . . . . . . . . . . . . . . . Overloaded Fab Kills . | . . . . . . . . . . . . . . . . . . . . . . . . . . . . . . Fab Network Shutdowns 1 | . . . . . . . . 1 . . . . . . . . . . . . . . . . . . . . . Hacking | -11 -10 -10 -9 -9 -9 -8 -8 -7 -7 -7 -7 -6 -6 -6 -6 -6 -5 -5 -5 -5 -5 -4 -4 -4 -4 -4 -4 -3 -3 --------- Run | Scr Mat Min Mat Min Exi Min Mat Fac Low Low Zio Pro Fac Low Low Dat Pro Fac Upp Upp War Pro Fac Ext Cet Arc Hub Res Tes Machines Accessed 95 | . 5 . 6 . 1 . 6 11 . . . . 16 1 2 4 . 8 1 1 1 1 12 10 1 . 3 2 3 Terminals 58 | . 4 . 4 . . . 5 7 . . . . 8 . 1 . . 4 1 . . 1 6 9 1 . 3 2 2 Fabricators 8 | . . . . . . . . 2 . . . . 3 . . . . 2 . . . . 1 . . . . . . Repair Stations 5 | . . . . . . . . . . . . . 2 . . . . . . . . . 3 . . . . . . Recycling Units 5 | . 1 . 2 . . . . . . . . . 1 . . . . . . . . . . 1 . . . . . Scanalyzers 2 | . . . . . . . . . . . . . 1 . . . . . . . . . . . . . . . 1 Garrison Access 8 | . . . . . . . 1 2 . . . . 1 . . . . 2 . . . . 2 . . . . . . Total Hacks 303 | . 14 . 16 . 1 . 16 30 . . . . 51 1 3 23 . 29 7 1 7 9 32 24 3 . 15 5 16 Successful 186 | . 9 . 8 . 1 . 8 16 . . . . 28 1 2 23 . 17 6 1 7 7 17 16 2 . 8 2 7 Failed 116 | . 4 . 8 . . . 8 14 . . . . 23 . 1 . . 12 1 . . 2 15 8 1 . 7 3 9 Catastrophic 22 | . 1 . . . . . 1 2 . . . . 5 . 1 . . 1 1 . . . 4 2 1 . 1 . 2 Database Lockouts 1 | . 1 . . . . . . . . . . . . . . . . . . . . . . . . . . . . Manual 128 | . 13 . 9 . . . 5 13 . . . . 20 . 2 . . 8 1 . 1 3 10 14 3 . 12 . 14 Terminals 212 | . 13 . 14 . . . 14 24 . . . . 34 . 2 . . 14 7 . . 9 21 23 3 . 15 5 14 Fabricators 22 | . . . . . . . . 3 . . . . 8 . . . . 9 . . . . 2 . . . . . . Repair Stations 11 | . . . . . . . . . . . . . 5 . . . . . . . . . 6 . . . . . . Recycling Units 5 | . 1 . 2 . . . . . . . . . 1 . . . . . . . . . . 1 . . . . . Scanalyzers 4 | . . . . . . . . . . . . . 2 . . . . . . . . . . . . . . . 2 Garrison Access 15 | . . . . . . . 2 3 . . . . 1 . . . . 6 . . . . 3 . . . . . . Terminal Hacks 128 | . 8 . 5 . 1 . 8 9 . . . . 14 1 2 23 . 6 6 1 7 7 9 11 1 . 5 2 2 Record 24 | . . . . . 1 . . . . . . . . . . 11 . . 6 . . 6 . . . . . . . Part Schematic 9 | . . . . . . . . 1 . . . . 1 . 1 4 . 1 . . . . 1 . . . . . . Robot Schematic 5 | . . . . . . . . . . . . . . . . 5 . . . . . . . . . . . . . Robot Analysis 1 | . . . . . . . . . . . . . 1 . . . . . . . . . . . . . . . . Prototype ID Bank 37 | . 6 . 3 . . . 4 2 . . . . 4 . . 3 . 3 . . 7 . . 2 . . 2 1 . Open Door 4 | . . . . . . . . . . . . . . 1 1 . . . . 1 . . . . 1 . . . . Level Access Points 1 | . . . . . . . 1 . . . . . . . . . . . . . . . . . . . . . . Branch Access Points 7 | . 1 . 1 . . . 1 1 . . . . 1 . . . . . . . . . 1 . . . . 1 . Terminal Index 1 | . . . . . . . . . . . . . . . . . . . . . . . . 1 . . . . . Scanalyzer Index 1 | . . . . . . . . 1 . . . . . . . . . . . . . . . . . . . . . Alert Level 7 | . . . . . . . . . . . . . . . . . . . . . . . 1 3 . . 2 . 1 Unreport Threat 17 | . . . 1 . . . 1 2 . . . . 3 . . . . . . . . 1 3 5 . . 1 . . Locate Traps 5 | . 1 . . . . . . . . . . . 2 . . . . . . . . . 1 . . . . . 1 Hauler Manifests 6 | . . . . . . . 1 1 . . . . 2 . . . . 1 . . . . 1 . . . . . . Registered Components 2 | . . . . . . . . 1 . . . . . . . . . 1 . . . . . . . . . . . Zone Layout 1 | . . . . . . . . . . . . . . . . . . . . . . . 1 . . . . . . Fabricator Hacks 13 | . . . . . . . . 2 . . . . 3 . . . . 6 . . . . 2 . . . . . . Load Schematic 7 | . . . . . . . . . . . . . 3 . . . . 3 . . . . 1 . . . . . . Build 6 | . . . . . . . . 2 . . . . . . . . . 3 . . . . 1 . . . . . . Repair Station Hacks 6 | . . . . . . . . . . . . . 3 . . . . . . . . . 3 . . . . . . Scan Component 4 | . . . . . . . . . . . . . 2 . . . . . . . . . 2 . . . . . . Repair 2 | . . . . . . . . . . . . . 1 . . . . . . . . . 1 . . . . . . Recycling Unit Hacks . | . . . . . . . . . . . . . . . . . . . . . . . . . . . . . . Scanalyzer . | . . . . . . . . . . . . . . . . . . . . . . . . . . . . . . Garrison Access Hacks 1 | . . . . . . . . 1 . . . . . . . . . . . . . . . . . . . . . Seal Access 1 | . . . . . . . . 1 . . . . . . . . . . . . . . . . . . . . . Unauthorized Hacks 38 | . 1 . 3 . . . . 4 . . . . 8 . . . . 5 . . . . 3 5 1 . 3 . 5 Terminals 25 | . . . 1 . . . . 4 . . . . 4 . . . . 2 . . . . 2 4 1 . 3 . 4 Track 9 | . . . . . . . . 1 . . . . 1 . . . . 1 . . . . 1 2 1 . 1 . 1 Assimilate 1 | . . . . . . . . 1 . . . . . . . . . . . . . . . . . . . . . Botnet 11 | . . . . . . . . 2 . . . . 1 . . . . 1 . . . . 1 2 . . 2 . 2 Detonate 2 | . . . . . . . . . . . . . 2 . . . . . . . . . . . . . . . . Disrupt 1 | . . . 1 . . . . . . . . . . . . . . . . . . . . . . . . . . Operators 1 | . . . . . . . . . . . . . . . . . . . . . . . . . . . . . 1 Fabricators 2 | . . . . . . . . . . . . . . . . . . 2 . . . . . . . . . . . Prioritize 1 | . . . . . . . . . . . . . . . . . . 1 . . . . . . . . . . . Haulers 1 | . . . . . . . . . . . . . . . . . . 1 . . . . . . . . . . . Repair Stations 1 | . . . . . . . . . . . . . 1 . . . . . . . . . . . . . . . . Mechanics 1 | . . . . . . . . . . . . . 1 . . . . . . . . . . . . . . . . Recycling Units 5 | . 1 . 2 . . . . . . . . . 1 . . . . . . . . . . 1 . . . . . Tunnel 5 | . 1 . 2 . . . . . . . . . 1 . . . . . . . . . . 1 . . . . . Scanalyzers 2 | . . . . . . . . . . . . . 1 . . . . . . . . . . . . . . . 1 Researchers 1 | . . . . . . . . . . . . . . . . . . . . . . . . . . . . . 1 Extract 1 | . . . . . . . . . . . . . 1 . . . . . . . . . . . . . . . . Garrison Access 3 | . . . . . . . . . . . . . 1 . . . . 1 . . . . 1 . . . . . . Jam 3 | . . . . . . . . . . . . . 1 . . . . 1 . . . . 1 . . . . . . Data Cores Recovered 7 | . . . 1 . . . 1 1 . . . . . . . . . 1 . . . . . 1 . . 2 . . Used 7 | . . . 1 . . . 1 1 . . . . . . . . . 1 . . . . . 1 . . 2 . . Hacking Detections 69 | . 4 . 4 . . . 6 9 . . . . 13 . 1 . . 8 1 . . 1 8 6 2 . 3 2 1 Full Trace Events 13 | . . . . . . . 1 2 . . . . 4 . 1 . . 2 1 . . . 2 . . . . . . Feedback Events 2 | . . . . . . . . . . . . . 2 . . . . . . . . . . . . . . . . Corruption 2 | . . . . . . . . . . . . . 2 . . . . . . . . . . . . . . . . Feedback Blocked . | . . . . . . . . . . . . . . . . . . . . . . . . . . . . . . Robot Schematics Acquired 5 | . . . . . . . . . . . . . . . . 5 . . . . . . . . . . . . . Robots Built 3 | . . . . . . . . 3 . . . . . . . . . . . . . . . . . . . . . Matter 252 | . . . . . . . . 252 . . . . . . . . . . . . . . . . . . . . . Time 134 | . . . . . . . . 134 . . . . . . . . . . . . . . . . . . . . . Total Robot Build Rating 12 | . . . . . . . . 12 . . . . . . . . . . . . . . . . . . . . . Part Schematics Acquired 12 | . . . . . . . . 1 . . . . 4 . 1 4 . 1 . . . . 1 . . . . . . Parts Built 6 | . . . . . . . . . . . . . . . . . . 4 . . . . 2 . . . . . . Matter 680 | . . . . . . . . . . . . . . . . . . 402 . . . . 278 . . . . . . Time 292 | . . . . . . . . . . . . . . . . . . 153 . . . . 139 . . . . . . Total Part Build Rating 40 | . . . . . . . . . . . . . . . . . . 22 . . . . 18 . . . . . . Parts Repaired 2 | . . . . . . . . . . . . . 1 . . . . . . . . . 1 . . . . . . Time 134 | . . . . . . . . . . . . . 100 . . . . . . . . . 34 . . . . . . Parts Recycled . | . . . . . . . . . . . . . . . . . . . . . . . . . . . . . . Recycled Matter . | . . . . . . . . . . . . . . . . . . . . . . . . . . . . . . Retrieved Matter . | . . . . . . . . . . . . . . . . . . . . . . . . . . . . . . Retrieved Components . | . . . . . . . . . . . . . . . . . . . . . . . . . . . . . . Parts Scanalyzed . | . . . . . . . . . . . . . . . . . . . . . . . . . . . . . . Part Schematics Acquired . | . . . . . . . . . . . . . . . . . . . . . . . . . . . . . . Parts Damaged . | . . . . . . . . . . . . . . . . . . . . . . . . . . . . . . Bothacking | -11 -10 -10 -9 -9 -9 -8 -8 -7 -7 -7 -7 -6 -6 -6 -6 -6 -5 -5 -5 -5 -5 -4 -4 -4 -4 -4 -4 -3 -3 ------------ Run | Scr Mat Min Mat Min Exi Min Mat Fac Low Low Zio Pro Fac Low Low Dat Pro Fac Upp Upp War Pro Fac Ext Cet Arc Hub Res Tes Used RIF Installer . | . . . . . . . . . . . . . . . . . . . . . . . . . . . . . . Robots Hacked . | . . . . . . . . . . . . . . . . . . . . . . . . . . . . . . Non-combat . | . . . . . . . . . . . . . . . . . . . . . . . . . . . . . . Combat . | . . . . . . . . . . . . . . . . . . . . . . . . . . . . . . Robot Hacks Applied . | . . . . . . . . . . . . . . . . . . . . . . . . . . . . . . Relay Couplers Released 3 | . . . . . . . . . . . . . . . . . . . . . . . . . . . 1 . 2 Machine Destruction 1 | . . . . . . . . . . . . . . . . . . . . . . . . . . . 1 . . Programmers 2 | . . . . . . . . . . . . . . . . . . . . . . . . . . . . . 2 Robots Rewired 19 | . . . . . . . . . 2 . . 2 . 1 . . . . . . . . 1 13 . . . . . Allies Hacked . | . . . . . . . . . . . . . . . . . . . . . . . . . . . . . . Hacks Repelled . | . . . . . . . . . . . . . . . . . . . . . . . . . . . . . . Allies | -11 -10 -10 -9 -9 -9 -8 -8 -7 -7 -7 -7 -6 -6 -6 -6 -6 -5 -5 -5 -5 -5 -4 -4 -4 -4 -4 -4 -3 -3 -------- Run | Scr Mat Min Mat Min Exi Min Mat Fac Low Low Zio Pro Fac Low Low Dat Pro Fac Upp Upp War Pro Fac Ext Cet Arc Hub Res Tes Total Allies 41 | . . . . 3 . . . 4 2 . . 2 . 1 . . 1 . . . . . 1 22 5 . . . . Largest Group 9 | . . . . 3 2 2 1 3 4 4 4 4 2 1 1 1 2 2 . . . . 1 9 5 4 4 . . Highest-Rated Group 522 | . . . . 40 32 32 16 90 124 124 120 120 50 30 30 30 124 124 . . . . 49 522 376 376 376 . . Highest-Rated Ally 156 | . . . . 16 16 16 16 30 32 32 32 32 30 30 30 30 94 94 . . . . 49 156 149 94 94 . . Total Orders 3 | . . . . . . . . . . . . . . 1 2 . . . . . . . . . . . . . . EXPLORE 2 | . . . . . . . . . . . . . . 1 1 . . . . . . . . . . . . . . RETURN 1 | . . . . . . . . . . . . . . . 1 . . . . . . . . . . . . . . Ally Attacks 428 | . . . . 15 . 21 4 5 8 . . 21 4 . 5 . 8 34 . . . . . 177 23 1 102 . . Total Damage 13604 | . . . . 190 . 255 33 209 236 . . 682 115 . 167 . 343 997 . . . . . 5919 746 . 3712 . . Kills 75 | . . . . 3 . 5 . 1 2 . . 6 . . 2 . . 4 . . . . . 36 1 . 15 . . Allies Corrupted 1 | . . . . . . . . . . . . . . . . . . . . . . . 1 . . . . . . Allies Melted . | . . . . . . . . . . . . . . . . . . . . . . . . . . . . . . Intel | -11 -10 -10 -9 -9 -9 -8 -8 -7 -7 -7 -7 -6 -6 -6 -6 -6 -5 -5 -5 -5 -5 -4 -4 -4 -4 -4 -4 -3 -3 ------- Run | Scr Mat Min Mat Min Exi Min Mat Fac Low Low Zio Pro Fac Low Low Dat Pro Fac Upp Upp War Pro Fac Ext Cet Arc Hub Res Tes Robot Analysis Total 1 | . . . . . . . . . . . . . 1 . . . . . . . . . . . . . . . . Derelict Logs Recovered 16 | . . 1 . 1 . . . . 1 2 1 2 . 2 2 . 1 . 1 1 . 1 . . . . . . . Drone Launches 2 | . . . . . . . . . . . . . . 1 1 . . . . . . . . . . . . . . Drone Recoveries . | . . . . . . . . . . . . . . . . . . . . . . . . . . . . . . Exploration | -11 -10 -10 -9 -9 -9 -8 -8 -7 -7 -7 -7 -6 -6 -6 -6 -6 -5 -5 -5 -5 -5 -4 -4 -4 -4 -4 -4 -3 -3 ------------- Run | Scr Mat Min Mat Min Exi Min Mat Fac Low Low Zio Pro Fac Low Low Dat Pro Fac Upp Upp War Pro Fac Ext Cet Arc Hub Res Tes Turns Passed 18021 | 33 321 450 570 884 162 491 400 699 742 412 529 513 1655 677 560 62 545 1352 701 537 900 589 1214 928 213 86 323 283 1190 Spaces Moved 19332 | 33 255 368 434 814 178 433 388 996 1257 723 883 708 1927 705 628 82 664 1181 812 604 789 673 1343 757 184 66 314 318 815 Core 1 | 1 . . . . . . . . . . . . . . . . . . . . . . . . . . . . . Treads . | . . . . . . . . . . . . . . . . . . . . . . . . . . . . . . Legs . | . . . . . . . . . . . . . . . . . . . . . . . . . . . . . . Wheels 2621 | 32 255 368 434 814 178 433 107 . . . . . . . . . . . . . . . . . . . . . . Hover 16710 | . . . . . . . 281 996 1257 723 883 708 1927 705 628 82 664 1181 812 604 789 673 1343 757 184 66 314 318 815 Flight . | . . . . . . . . . . . . . . . . . . . . . . . . . . . . . . Fastest Speed 42 | 50 80 80 85 86 86 86 42 42 42 42 42 42 53 63 63 63 63 63 68 68 58 58 50 50 50 50 50 50 50 Average Speed 59 | 79 80 80 89 89 86 86 54 42 42 42 42 44 63 63 63 63 63 66 68 68 64 58 54 50 50 50 50 50 50 Slowest Speed 111 | 80 80 85 90 90 86 86 111 42 42 42 42 102 72 63 63 63 63 68 68 68 68 58 58 50 50 50 50 50 50 Overloaded Moves . | . . . . . . . . . . . . . . . . . . . . . . . . . . . . . . Propulsion Burnouts . | . . . . . . . . . . . . . . . . . . . . . . . . . . . . . . Robots Hopped . | . . . . . . . . . . . . . . . . . . . . . . . . . . . . . . Cave-ins Triggered . | . . . . . . . . . . . . . . . . . . . . . . . . . . . . . . Exploration Rate (%) 66 | 3 48 78 37 91 54 95 45 35 97 85 85 90 46 90 95 71 88 38 93 74 84 92 41 82 69 80 50 12 58 Regions Visited 29 Branch Regions 21 Pre-discovered Areas 13 | . 1 . 2 1 . . . . . . 2 1 1 2 . 1 . . . . . 1 . 1 . . . . . Known Exits Taken 12 | . 1 . 1 . . . 1 1 . . . . 1 . . . 1 1 . 1 . 1 1 . . . 1 1 . Unknown Exits Taken 17 | 1 . 1 . 1 1 1 . . 1 1 1 1 . 1 1 1 . . 1 . 1 . . 1 1 1 . . . Scrap Searched 40 | . . 2 . 2 . 1 . . 5 2 2 4 . 4 5 . 3 . 4 4 . 2 . . . . . . . Spaces Dug 63 | . . . . . . . . . 5 . . . . . . . . 16 5 4 . 1 9 6 . 6 1 2 8 Terrain Destroyed 1477 | . . . 5 4 . 4 4 40 34 15 . 16 144 . . . . 141 28 33 31 79 79 55 32 13 350 28 342 Melee . | . . . . . . . . . . . . . . . . . . . . . . . . . . . . . . Projectile 662 | . . . 5 4 . 4 4 40 34 15 . 16 10 . . . . 59 28 33 31 79 59 55 32 13 22 28 91 AOE 815 | . . . . . . . . . . . . . 134 . . . . 82 . . . . 20 . . . 328 . 251 Terrain Rammed . | . . . . . . . . . . . . . . . . . . . . . . . . . . . . . . Walls Destroyed . | . . . . . . . . . . . . . . . . . . . . . . . . . . . . . . Machines Disabled . | . . . . . . . . . . . . . . . . . . . . . . . . . . . . . . Actions | -11 -10 -10 -9 -9 -9 -8 -8 -7 -7 -7 -7 -6 -6 -6 -6 -6 -5 -5 -5 -5 -5 -4 -4 -4 -4 -4 -4 -3 -3 --------- Run | Scr Mat Min Mat Min Exi Min Mat Fac Low Low Zio Pro Fac Low Low Dat Pro Fac Upp Upp War Pro Fac Ext Cet Arc Hub Res Tes Total 24149 | 37 315 440 528 913 186 497 508 1162 1420 812 1040 857 2212 883 768 91 766 1613 933 685 1127 796 1730 1211 271 110 435 424 1379 Wait 2504 | . 8 20 26 52 9 29 30 69 66 70 157 71 64 92 109 10 84 245 81 32 252 20 257 258 51 27 65 47 203 Move 19301 | 32 254 367 433 813 177 432 387 995 1256 722 882 707 1926 704 627 81 663 1180 811 603 788 672 1342 754 183 65 313 317 815 Hop . | . . . . . . . . . . . . . . . . . . . . . . . . . . . . . . Pick Up 49 | . . . . 1 . . . . 2 . . 3 4 4 2 . . 6 . 1 4 2 . 5 . 1 1 5 8 Fast Attach 112 | 5 5 2 9 5 . . 5 3 . . 1 4 14 1 . . . 10 . 1 9 4 11 . 4 . 4 6 9 Attach 7 | . 1 . . . . . . . . . . . 1 1 1 . . 1 . . . . 1 . . . . . 1 Detach 2 | . . . . 1 . . . . . . . . . . . . . . . . . . . . . . . 1 . Swap 45 | . 1 3 2 2 . . 1 2 . . . 2 1 1 1 . . 7 . . 3 1 6 3 . . 1 . 8 Drop 151 | . 2 4 8 5 . . 6 3 1 . . 5 19 5 1 . . 16 . 2 12 5 16 3 3 1 5 11 18 Fire 1136 | . 28 41 39 33 . 24 41 64 38 14 . 35 113 43 18 . 18 94 17 28 31 43 61 54 18 5 27 13 196 Melee . | . . . . . . . . . . . . . . . . . . . . . . . . . . . . . . Ram . | . . . . . . . . . . . . . . . . . . . . . . . . . . . . . . Kick . | . . . . . . . . . . . . . . . . . . . . . . . . . . . . . . Crush . | . . . . . . . . . . . . . . . . . . . . . . . . . . . . . . Escape Stasis 16 | . . . . . . . . . . . . . . . . . . . . . . . 8 8 . . . . . Rewire 93 | . . . . . . . . . 16 . . 7 . 1 . . . . . . . . 1 68 . . . . . Trap 3 | . . . . . . . . . . . . . 1 . . . . . . . . 2 . . . . . . . Miscellaneous 730 | . 16 3 11 1 . 12 38 26 41 6 . 23 69 31 9 . 1 54 24 18 28 47 27 58 12 11 19 24 121 Route ------- -11/Scrapyard -10/Materials (discovered 3 exits: *Mat / *Min x2) -10/Mines -9/Materials (discovered 3 exits: *Mat / *Min x2) -9/Mines (discovered 2 exits: *Mat / *Exi) -9/Exiles -8/Mines (discovered 2 exits: *Mat x2) -8/Materials (discovered 3 exits: *Fac x3) -7/Factory (discovered 4 exits: *Fac / Sto / *Low x2) -7/Lower Caves -7/Lower Caves (discovered 2 exits: *Fac / *Zio) -7/Zion -6/Proximity Caves -6/Factory (discovered 5 exits: *Fac x3 / *Low x2) -6/Lower Caves -6/Lower Caves (discovered 2 exits: *Fac / *Dat) -6/Data Miner -5/Proximity Caves -5/Factory (discovered 2 exits: *Fac / *Upp) -5/Upper Caves -5/Upper Caves (discovered 2 exits: *Fac / *War) -5/Warlord -4/Proximity Caves -4/Factory (discovered 8 exits: *Res x3 / Upp x2 / *Ext x2 / Arm) -4/Extension (discovered 3 exits: *Res x2 / *Cet) -4/Cetus (discovered 2 exits: *Res / [*Arc]) -4/Archives (discovered 2 exits: *Res / *Hub) -4/Hub_04(d) (discovered 4 exits: *Res x4) -3/Research (discovered 2 exits: *Tes x2) -3/Testing History --------- Turn | Location | Event 1 | -11/Scrapyard | Upgraded with Propulsion slot (x1) 1 | -11/Scrapyard | Upgraded with Utility slot (x1) 1 | -11/Scrapyard | Upgraded with Weapon slot (x1) 11 | -11/Scrapyard | Discovered new exit (range 15) 34 | -11/Scrapyard | Entered Materials 145 | -10/Materials | Identified exit to Mines 168 | -10/Materials | Central database locked down 294 | -10/Materials | Reached level 2 300 | -10/Materials | Build established: Mutant 308 | -10/Materials | Discovered new exit (range 14) 355 | -10/Materials | Entered Mines 457 | -10/Mines | Received a Rocket Launcher from a helpful Derelict 501 | -10/Mines | Assembled infested the area 581 | -10/Mines | Core integrity fell below 50% 626 | -10/Mines | Destroyed 7 combat bots 706 | -10/Mines | Discovered new exit (range 13) 805 | -10/Mines | Entered Materials 806 | -9/Materials | Core integrity fell below 50% 807 | -9/Materials | Reached level 3 822 | -9/Materials | Upgraded with Weapon slot (x1) 867 | -9/Materials | Identified exit to Mines 867 | -9/Materials | Reached level 4 982 | -9/Materials | Upgraded with Propulsion slot (x1) 1057 | -9/Materials | Core integrity fell below 20% 1097 | -9/Materials | Reached level 5 1121 | -9/Materials | Destroyed 7 combat bots 1123 | -9/Materials | Build established: Gunner 1142 | -9/Materials | Discovered new exit (range 13) 1329 | -9/Materials | Upgraded with Utility slot (x1) 1375 | -9/Materials | Entered Mines 1377 | -9/Mines | Reached level 6 1491 | -9/Mines | YI-UF0 nonchalantly dropped a Grenade Launcher on the ground 1547 | -9/Mines | Learned location of Storage (-7) 1796 | -9/Mines | Discovered new exit (range 8) 1806 | -9/Mines | Assisted by bots powering up and referring to "LRC-V3" 2068 | -9/Mines | Destroyed YI-UF0 2073 | -9/Mines | Found Prototype Storage 2073 | -9/Mines | Identified YI-UF0's Bottomless Matter Pit 2080 | -9/Mines | Found Prototype Launcher 2085 | -9/Mines | Identified YI-UF0's Doublenader 2237 | -9/Mines | Deemed a non-threat by the Exiles lab entrance 2237 | -9/Mines | Discovered new exit (range 5) 2259 | -9/Mines | Entered Exiles 2259 | -9/Exiles | Found Exiles lab abandoned 2259 | -9/Exiles | Accompanied by 2 allies 2401 | -9/Exiles | Discovered new exit (range 14) 2421 | -9/Exiles | Entered Mines 2421 | -8/Mines | Accompanied by 2 allies 2423 | -8/Mines | Reached level 7 2602 | -8/Mines | Discovered new exit (range 15) 2740 | -8/Mines | Reached level 8 2902 | -8/Mines | Discovered new exit (range 3) 2912 | -8/Mines | Entered Materials 2912 | -8/Materials | Accompanied by 1 ally 2913 | -8/Materials | Core integrity fell below 50% 2914 | -8/Materials | Reached level 9 3083 | -8/Materials | Reached level 10 3089 | -8/Materials | Identified exit to Factory 3271 | -8/Materials | Destroyed 8 combat bots 3286 | -8/Materials | Reached level 11 3312 | -8/Materials | Entered Factory 3313 | -7/Factory | Identified exit to Storage 3314 | -7/Factory | Reached level 12 3324 | -7/Factory | Identified exit to Lower Caves 3613 | -7/Factory | Reached level 13 3714 | -7/Factory | Local fabrication network quarantined 3715 | -7/Factory | Upgraded with Weapon slot (x1) 3800 | -7/Factory | Fabricated L-41 Fighter? 3829 | -7/Factory | Discovered new exit (range 14) 3830 | -7/Factory | Reached level 14 3838 | -7/Factory | Garrison activated, responded to threat 3863 | -7/Factory | Upgraded with Utility slot (x1) 4011 | -7/Factory | Entered Lower Caves 4011 | -7/Lower Caves | Accompanied by 2 allies 4022 | -7/Lower Caves | Encountered a Warlord checkpoint 4121 | -7/Lower Caves | Reached level 15 4159 | -7/Lower Caves | Learned Factory stockpile data 4210 | -7/Lower Caves | Attracted the attention of an 0b10 outpost 4274 | -7/Lower Caves | Destroyed 8 combat bots 4567 | -7/Lower Caves | Attracted the attention of an 0b10 checkpoint 4592 | -7/Lower Caves | Build established: Commander-Gunner 4709 | -7/Lower Caves | Discovered new exit (range 6) 4753 | -7/Lower Caves | Entered another Lower Caves area 4753 | -7/Lower Caves | Accompanied by 4 allies 4755 | -7/Lower Caves | Learned location of 1 exit from Factory 4773 | -7/Lower Caves | Learned Factory garrison access intel 4787 | -7/Lower Caves | Discovered new exit (range 9) 4800 | -7/Lower Caves | Reached level 16 4874 | -7/Lower Caves | Encountered a Warlord checkpoint 4939 | -7/Lower Caves | Attracted the attention of an 0b10 checkpoint 5054 | -7/Lower Caves | Discovered new exit (range 13) 5165 | -7/Lower Caves | Entered Zion 5165 | -7/Zion | Accompanied by 4 allies 5194 | -7/Zion | Discovered new exit (range 17) 5225 | -7/Zion | Learned Factory emergency access door positions 5238 | -7/Zion | Upgraded with Utility slot (x1) 5343 | -7/Zion | Learned location of Warlord (-5) 5694 | -7/Zion | Entered Proximity Caves 5694 | -6/Proximity Caves | Accompanied by 4 allies 5744 | -6/Proximity Caves | Learned location of Extension (-4) 5761 | -6/Proximity Caves | Learned Factory terminal intel 5773 | -6/Proximity Caves | Reached level 17 5984 | -6/Proximity Caves | Attracted the attention of an 0b10 outpost 6052 | -6/Proximity Caves | Upgraded with Propulsion slot (x1) 6115 | -6/Proximity Caves | Discovered new exit (range 11) 6168 | -6/Proximity Caves | Reached level 18 6207 | -6/Proximity Caves | Entered Factory 6207 | -6/Factory | Accompanied by 2 allies 6208 | -6/Factory | Identified exit to Factory 6211 | -6/Factory | Loaded intel: 20 terminal locations 6212 | -6/Factory | Loaded intel: 4 garrison access locations 6404 | -6/Factory | Identified exit to Lower Caves 6437 | -6/Factory | Reached level 19 6605 | -6/Factory | Build established: Gunner 6621 | -6/Factory | Discovered exit to Factory (range 11) 7080 | -6/Factory | Repaired Broken Imp. Heavy Machine Gun 7102 | -6/Factory | Build established: Scavenger-Gunner 7257 | -6/Factory | First assault squad dispatched 7404 | -6/Factory | Reached level 20 7584 | -6/Factory | Discovered exit to Factory (range 6) 7708 | -6/Factory | Build established: Gunner 7862 | -6/Factory | Entered Lower Caves 7873 | -6/Lower Caves | Spotted B-75 Beast 7957 | -6/Lower Caves | Destroyed B-75 Beast 8009 | -6/Lower Caves | Upgraded with Utility slot (x1) 8270 | -6/Lower Caves | Encountered a Warlord checkpoint 8304 | -6/Lower Caves | Discovered new exit (range 6) 8375 | -6/Lower Caves | Attracted the attention of an 0b10 outpost 8539 | -6/Lower Caves | Entered another Lower Caves area 8539 | -6/Lower Caves | Accompanied by 1 ally 8576 | -6/Lower Caves | Discovered exit to Factory (range 2) 8666 | -6/Lower Caves | Learned Factory terminal intel 8939 | -6/Lower Caves | Reached level 21 8953 | -6/Lower Caves | Discovered new exit (range 16) 8976 | -6/Lower Caves | Learned Factory machine intel 9099 | -6/Lower Caves | Entered Data Miner 9099 | -6/Data Miner | Accompanied by 1 ally 9099 | -6/Data Miner | Discovered new exit (range 6) 9111 | -6/Data Miner | Met Data Miner 9125 | -6/Data Miner | Learned location of Section 7 (-2) 9125 | -6/Data Miner | Acquired the access code to Warlord's prototype stash 9134 | -6/Data Miner | Received God Mode back door access code from Data Miner 9161 | -6/Data Miner | Entered Proximity Caves 9161 | -5/Proximity Caves | Accompanied by 1 ally 9338 | -5/Proximity Caves | Learned Factory terminal intel 9379 | -5/Proximity Caves | Attracted the attention of an 0b10 checkpoint 9380 | -5/Proximity Caves | Escorted by Enhanced Grunt 9471 | -5/Proximity Caves | Spotted B-75 Beast 9498 | -5/Proximity Caves | Destroyed B-75 Beast 9519 | -5/Proximity Caves | Destroyed 9 combat bots 9579 | -5/Proximity Caves | Discovered exit to Factory (range 11) 9706 | -5/Proximity Caves | Entered Factory 9706 | -5/Factory | Accompanied by 2 allies 9707 | -5/Factory | Identified exit to Upper Caves 9708 | -5/Factory | Loaded intel: 229 machine locations 9708 | -5/Factory | Reached level 22 9709 | -5/Factory | Loaded intel: 19 terminal locations 9836 | -5/Factory | Upgraded with Power slot (x1) 9955 | -5/Factory | Incoming investigation squad redirected 10048 | -5/Factory | Fabricated Enh. Gauss Cannon (x2) 10072 | -5/Factory | Build established: Scavenger-Gunner 10099 | -5/Factory | Fabricated Cmb. Airjet (x2) 10168 | -5/Factory | Destroyed 8 combat bots 10186 | -5/Factory | Reached level 23 10204 | -5/Factory | Incoming investigation squad redirected 10306 | -5/Factory | First assault squad dispatched 10401 | -5/Factory | Destroyed 7 combat bots 10533 | -5/Factory | Upgraded with Utility slot (x1) 10632 | -5/Factory | Garrison activated, responded to threat 10691 | -5/Factory | Destroyed 12 combat bots 10724 | -5/Factory | Upgraded with Utility slot (x1) 10873 | -5/Factory | Discovered new exit (range 15) 11058 | -5/Factory | Entered Upper Caves 11060 | -5/Upper Caves | Reached level 24 11336 | -5/Upper Caves | Build established: Scavenger-Scout 11410 | -5/Upper Caves | Attracted the attention of an 0b10 base 11453 | -5/Upper Caves | Destroyed 7 combat bots 11462 | -5/Upper Caves | Learned Armory security intel 11483 | -5/Upper Caves | Encountered a Warlord checkpoint 11488 | -5/Upper Caves | Discovered new exit (range 12) 11584 | -5/Upper Caves | Ambushed by wild Derelicts 11668 | -5/Upper Caves | Attracted the attention of an 0b10 checkpoint 11759 | -5/Upper Caves | Entered another Upper Caves area 11790 | -5/Upper Caves | Discovered new exit (range 18) 11949 | -5/Upper Caves | Identified exit to Warlord 12024 | -5/Upper Caves | Attracted the attention of an 0b10 base 12070 | -5/Upper Caves | Destroyed 11 combat bots 12126 | -5/Upper Caves | Encountered a Warlord checkpoint 12296 | -5/Upper Caves | Entered Warlord 12319 | -5/Warlord | System corruption cleaned by Quarantine Array 12632 | -5/Warlord | Met Warlord 12639 | -5/Warlord | Opened Warlord's prototype stash 12642 | -5/Warlord | Found Prototype Reactor 12642 | -5/Warlord | Identified Vortex Chain Reactor 12653 | -5/Warlord | Found Prototype Device 12653 | -5/Warlord | Identified Thermal Barrier 12657 | -5/Warlord | Warlord's base attacked by MAIN.C 12786 | -5/Warlord | Upgraded with Propulsion slot (x1) 12951 | -5/Warlord | Warlord forces counterattacked 12981 | -5/Warlord | Spotted Striker 12992 | -5/Warlord | Spotted Executioner 12998 | -5/Warlord | Destroyed Executioner 13006 | -5/Warlord | Spotted Executioner 13042 | -5/Warlord | Discovered new exit (range 14) 13043 | -5/Warlord | Destroyed 8 combat bots 13066 | -5/Warlord | Spotted B-75 Beast 13068 | -5/Warlord | Spotted B-86 Titan 13107 | -5/Warlord | Build established: Gunner 13158 | -5/Warlord | Spotted Executioner 13174 | -5/Warlord | P-70 Sage assimilated allied F6-M1T(g) 13184 | -5/Warlord | Found Prototype Processor 13184 | -5/Warlord | Identified Exp. Core Analyzer 13186 | -5/Warlord | Upgraded with Utility slot (x1) 13196 | -5/Warlord | Entered Proximity Caves 13198 | -4/Proximity Caves | Reached level 25 13231 | -4/Proximity Caves | Destroyed 12 combat bots 13231 | -4/Proximity Caves | Identified exit to Factory 13303 | -4/Proximity Caves | Spotted B-86 Titan 13314 | -4/Proximity Caves | Destroyed B-86 Titan 13331 | -4/Proximity Caves | Attracted the attention of an 0b10 checkpoint 13408 | -4/Proximity Caves | Attracted the attention of an 0b10 base 13466 | -4/Proximity Caves | Learned Extension emergency access door positions 13466 | -4/Proximity Caves | Learned Factory security intel 13538 | -4/Proximity Caves | Build established: Scout 13647 | -4/Proximity Caves | Upgraded with Utility slot (x1) 13785 | -4/Proximity Caves | Entered Factory 13786 | -4/Factory | Identified exit to Research 13787 | -4/Factory | Reached level 26 13788 | -4/Factory | Loaded intel: 21 terminal locations 14029 | -4/Factory | Discovered new exit (range 20) 14040 | -4/Factory | Spotted B-86 Titan 14068 | -4/Factory | Destroyed B-86 Titan 14212 | -4/Factory | Incoming investigation squad redirected 14231 | -4/Factory | Discovered exit to Research (range 19) 14288 | -4/Factory | Repaired Cmb. Antigrav System 14392 | -4/Factory | Discovered exit to Research (range 15) 14431 | -4/Factory | Identified exit to Upper Caves 14431 | -4/Factory | Identified exit to Extension 14431 | -4/Factory | Identified exit to Armory 14769 | -4/Factory | Fabricated Cmb. Linear Gravjet (x2) 14873 | -4/Factory | Incoming investigation squad redirected 14989 | -4/Factory | Destroyed 8 combat bots 14999 | -4/Factory | Entered Extension 15001 | -4/Extension | Reached level 27 15299 | -4/Extension | Disrupted transfer network 15363 | -4/Extension | Spotted B-86 Titan 15386 | -4/Extension | Spotted B-86 Titan 15400 | -4/Extension | Allies destroyed B-86 Titan 15425 | -4/Extension | Destroyed B-86 Titan 15446 | -4/Extension | Destroyed 7 combat bots 15528 | -4/Extension | Rescued A7 15547 | -4/Extension | Rescued a captive Derelict 15553 | -4/Extension | Rescued a captive Derelict 15556 | -4/Extension | Rescued a captive Derelict 15557 | -4/Extension | Rescued a captive Derelict 15600 | -4/Extension | Discovered exit to Research (range 16) 15634 | -4/Extension | Rescued a captive Derelict 15642 | -4/Extension | Rescued a captive Derelict 15703 | -4/Extension | Rescued a captive Derelict 15703 | -4/Extension | Rescued a captive Derelict 15749 | -4/Extension | First assault squad dispatched 15764 | -4/Extension | Reached level 28 15893 | -4/Extension | Discovered exit to Research (range 10) 15894 | -4/Extension | Discovered new exit (range 6) 15927 | -4/Extension | Entered Cetus 15927 | -4/Cetus | Accompanied by 5 allies (A7) 15932 | -4/Cetus | Acquired a Cetus Manufacturing Module code from A7 15936 | -4/Cetus | Spotted Cetus Guard 15936 | -4/Cetus | Spotted Cetus Guard 15937 | -4/Cetus | Spotted Cetus Guard 15938 | -4/Cetus | Spotted Cetus Guard 15939 | -4/Cetus | Destroyed Cetus Guard 15941 | -4/Cetus | Destroyed Cetus Guard 15944 | -4/Cetus | Destroyed Cetus Guard 15950 | -4/Cetus | Destroyed Cetus Guard 15974 | -4/Cetus | Started Cetus Manufacturing Module 15980 | -4/Cetus | Escorted A7 to Cetus Mainframe 15987 | -4/Cetus | Discovered new exit (range 17) 15998 | -4/Cetus | Spotted Cetus Guard 15998 | -4/Cetus | Spotted Cetus Guard 15999 | -4/Cetus | Manufactured an Enhanced Grunt 15999 | -4/Cetus | Spotted Cetus Guard 16005 | -4/Cetus | Spotted Cetus Guard 16008 | -4/Cetus | Extracted ID and sensor layout for unrecognized location from A7's data core 16008 | -4/Cetus | Destroyed Cetus Guard 16014 | -4/Cetus | Destroyed Cetus Guard 16016 | -4/Cetus | Destroyed Cetus Guard 16024 | -4/Cetus | Manufactured an Enhanced Grunt 16030 | -4/Cetus | Destroyed Cetus Guard 16045 | -4/Cetus | Found Prototype Protection 16045 | -4/Cetus | Identified Med. Regenerative Plating 16049 | -4/Cetus | Manufactured an Enhanced Grunt 16049 | -4/Cetus | Discovered exit to Research (range 18) 16053 | -4/Cetus | Met Revision 17 16059 | -4/Cetus | Destroyed 7 combat bots 16060 | -4/Cetus | Upgraded with Utility slot (x1) 16074 | -4/Cetus | Manufactured an Enhanced Grunt 16099 | -4/Cetus | Manufactured an Enhanced Grunt 16140 | -4/Cetus | Entered Archives 16140 | -4/Archives | Accompanied by 4 allies 16169 | -4/Archives | Discovered exit to Research (range 14) 16185 | -4/Archives | Discovered new exit (range 14) 16226 | -4/Archives | Entered Hub_04(d) 16226 | -4/Hub_04(d) | Accompanied by 4 allies 16339 | -4/Hub_04(d) | Found Prototype Device 16339 | -4/Hub_04(d) | Identified Exp. Sensor Array 16361 | -4/Hub_04(d) | Discovered exit to Research (range 20) 16388 | -4/Hub_04(d) | Discovered exit to Research (range 18) 16464 | -4/Hub_04(d) | Discovered exit to Research (range 14) 16476 | -4/Hub_04(d) | First assault squad dispatched 16510 | -4/Hub_04(d) | Reached level 29 16527 | -4/Hub_04(d) | Network Hub disabled 16527 | -4/Hub_04(d) | Spotted Lightning 16527 | -4/Hub_04(d) | Spotted Lightning 16527 | -4/Hub_04(d) | Discovered exit to Research (range 16) 16527 | -4/Hub_04(d) | Spotted Lightning 16530 | -4/Hub_04(d) | Network Hub disabled 16530 | -4/Hub_04(d) | Spotted Lightning 16546 | -4/Hub_04(d) | Spotted Lightning 16549 | -4/Hub_04(d) | Entered Research 16573 | -3/Research | Discovered new exit (range 16) 16641 | -3/Research | Spotted B-86 Titan 16719 | -3/Research | Identified exit to Testing 16733 | -3/Research | Found Prototype Device 16733 | -3/Research | Identified Exp. Thermal Shield 16749 | -3/Research | Revision forces began assault on 0b10 16832 | -3/Research | Entered Testing 16890 | -3/Testing | Reached level 30 17022 | -3/Testing | Upgraded with Power slot (x1) 17037 | -3/Testing | Spotted Striker 17041 | -3/Testing | Spotted Striker 17089 | -3/Testing | Destroyed Striker 17092 | -3/Testing | Destroyed Striker 17100 | -3/Testing | Spotted Alpha 7 17111 | -3/Testing | First assault squad dispatched 17136 | -3/Testing | High security lockdown imminent 17154 | -3/Testing | Scanned by Researcher 17193 | -3/Testing | Destroyed 8 combat bots 17216 | -3/Testing | High security lockdown engaged 17239 | -3/Testing | Found Tesla Bomb Launcher 17310 | -3/Testing | Destroyed 9 combat bots 17355 | -3/Testing | Destroyed 10 combat bots 17393 | -3/Testing | Spotted Striker 17394 | -3/Testing | Spotted Investigator 17398 | -3/Testing | Destroyed Investigator 17414 | -3/Testing | Reached level 31 17442 | -3/Testing | Destroyed 15 combat bots 17555 | -3/Testing | Destroyed 18 combat bots 17558 | -3/Testing | Spotted Executioner 17576 | -3/Testing | Destroyed Striker 17576 | -3/Testing | Destroyed Executioner 17598 | -3/Testing | Destroyed 9 combat bots 17740 | -3/Testing | Spotted Executioner 17750 | -3/Testing | Core integrity fell below 50% 17757 | -3/Testing | Core integrity fell below 20% 17761 | -3/Testing | System corruption reached 10% 17774 | -3/Testing | Destroyed Executioner 17808 | -3/Testing | Destroyed 31 combat bots 17889 | -3/Testing | Found Prototype Ballistic Cannon 17889 | -3/Testing | Identified Omega Cannon 17950 | -3/Testing | Spotted Executioner 17951 | -3/Testing | Sterilization system engaged 17951 | -3/Testing | Non-combat units ordered to evacuate 17954 | -3/Testing | Spotted Executioner 17955 | -3/Testing | Destroyed Executioner 17959 | -3/Testing | Destroyed Executioner 18000 | -3/Testing | Destroyed 30 combat bots 18005 | -3/Testing | Spotted Executioner 18005 | -3/Testing | Spotted Striker 18007 | -3/Testing | Spotted Executioner 18017 | -3/Testing | Destroyed Striker 18022 | -3/Testing | Destroyed by H-77 Assassin with Coil Gun Last Messages --------------- 18018_ Destroyed Lgt. Particle Reactor. 18018_ P-80 Master system corrupted by crushing effect. 18018_ P-80 Master resets P-80 Master, system corruption cleaned. 18018_ Penetrated by Slug. 18019_ Acquired 20 matter. 18019_ Penetrated by Slug. 18019_ Slug penetrates Door. 18019_ Penetrated by Slug. 18019_ Destroyed Imp. Antigrav System. 18019_ P-80 Master knocked back. 18019_ Destroyed Imp. Antigrav System. 18019_ P-80 Master system corrupted by crushing effect. 18020_ Acquired 20 matter. 18020_ P-80 Master resets H-77 Assassin, system corruption cleaned. 18020_ P-80 Master resets P-80 Master, system corruption cleaned. 18021_ Destroyed Prototype Energy Gun. 18021_ P-80 Master knocked back. 18021_ Destroyed Lgt. Particle Reactor. 18021_ P-80 Master system corrupted by crushing effect. 18022_ Acquired 20 matter. Map ----- +----------------------------------------------------+ | ?????????????????????????????????????????????????? | | ####?????????????????????????????????????????????? | | #????##??????????????????????????????????????????? | | ##?#?????????????????????????????????????????????? | | #####????????????????????????????????????????????? | | #####????????????????????????????????????????????? | | #####"???????????????????????????????????????????? | | ???????????????????????????????????????????? | | """ ""??????????????????????????????????????????? | | """ ""??""??????????????????????????????????????? | | """ """ ""??????????????????????????????????????? | | """ """ """ "???????????????????????????????????? | | """ """ """ "???????????????????????????????????? | | ????????###??##?###?????????????????? | | ?????????# """T""" #?????????????????? | | "#"""+##?????????# """ """ #?????????????????? | | ! #?????????# #?????????????????? | | #?????????# """"" #?????????????????? | | #?????????# """" ##????????????????? | | ########??# """ !;#????????????????? | | ! # ####### ##?# ! = #?????????????????? | | " # # #!! =*!! #??#;######???????? | | =% # # # h= ;;; %=%!*!#+#; ] ???????? | | " %% *% !%!%=!%==! ; #??????? | | % =E [[%%!%=![ ; #??????? | | pp * %%[@![%!= ; m ! #??????? | | p = ! ==*%!%%=%** ; #??????? | | ## # #### p * = !%[=%;*! ; ! ;??????? | | T" # ## p =[*[%=!;##=[ # #??????? | | ""########## E [!=*%%##? #? ???????? | | ####??# ![%==#??? #???" ""#????????? | | #?????# !! %#???? #?????""?????????? | | ####### ![=#???? #????????????????? | | # !=#????? #????????????????? | | # ########### ;#????? #????????????????? | | # ######????# ##??????#????????????????? | | # # """#????# !#????????????????????????? | | # + " "##??#[%#????????????????????????? | | + # ] #?## =##???????????????????????? | | # # "]#?# #???????????????????????? | | + # " "##?# #???????????????????????? | | ## ## """#???# / ??????????????????????? | | ## #######???# # ""????????????????????? | | ## ###########" ## """"??????????????????? | | ## +? ??????????????????? | | ######## #?#####?????????????????? | | ???????######++###/##"#"##???????????????????????? | | ???????????????????? ? ????????????????????????? | | ????????????????????" ? "????????????????????????? | | ????????????????????" ? ????????????????????????? | +----------------------------------------------------+ Best States ------------- Heat Dissipation 153 Energy Generation 106 Energy Capacity 940 Matter Stores 1850 Matter Capacity 1850 Sight Range 18 Robot Scan Range 30 Terrain Scan Range 20 Terrain Scan Density 310 Power Amplification 50 Armor Coverage 225 Resistance: KI 20 Resistance: TH 20 Weapon Cycling 20 Evasion (%) 67 Targeting Accuracy 11 Core Analysis 15 Recoil Reduction 6 Matter Filtering 30 Kinecelleration 40 Offensive Hacking 10 Defensive Hacking 5 Item Schematics ----------------- Enh. Gauss Cannon | -7/Factory | Hacked Mni. Drone Bay | -6/Factory | Hacked Imp. Hacking Suite | -6/Factory | Extracted Hvy. Flak Cannon | -6/Factory | Extracted Imp. EM Pulse Cannon | -6/Factory | Extracted Cmb. Airjet | -6/Lower Caves | Hacked Combat Drone Bay | -6/Data Miner | Free Lgt. Regenerative Plating | -6/Data Miner | Free Exp. Cesium-ion Thruster | -6/Data Miner | Free Plasma Sword | -6/Data Miner | Free Fusion Bomb Launcher | -5/Factory | Hacked Cmb. Linear Gravjet | -4/Factory | Hacked Robot Schematics ------------------ S-27 Virus | -6/Data Miner | Free G-67 Veteran | -6/Data Miner | Free X-72 Disruptor | -6/Data Miner | Free H-66 Slayer | -6/Data Miner | Free I-47 Archangel | -6/Data Miner | Free Fabricated ------------ L-41 Fighter | x3 | -7/Factory | Preloaded Enh. Gauss Cannon | x2 | -5/Factory Cmb. Airjet | x2 | -5/Factory Cmb. Linear Gravjet | x2 | -4/Factory Alien Tech Used ----------------- None Achievements -------------- None Challenges ------------ None RPGLIKE | -11 -10 -10 -9 -9 -9 -8 -8 -7 -7 -7 -7 -6 -6 -6 -6 -6 -5 -5 -5 -5 -5 -4 -4 -4 -4 -4 -4 -3 -3 --------- Run | Scr Mat Min Mat Min Exi Min Mat Fac Low Low Zio Pro Fac Low Low Dat Pro Fac Upp Upp War Pro Fac Ext Cet Arc Hub Res Tes Levels Raised 30 | . 1 . 3 1 . 2 3 3 1 1 . 2 2 . 1 . . 2 1 . . 1 1 2 . . 1 . 2 XP Earned 49344 | 3000 1565 1400 4058 1559 200 2455 3878 5275 1814 500 220 2609 3605 597 308 105 1177 3160 258 347 754 1365 1703 1779 287 152 1044 806 3364 XP Spent 47855 | 2825 . 135 3900 . . . 3920 4120 500 . 1400 2850 . 2600 . . . 6250 . 560 4800 2900 400 1250 3200 640 . . 5605 Upgrades 95 | 11 . 3 10 . . . 10 8 1 . 1 3 . 4 . . . 11 . 2 3 1 1 1 1 2 . . 22 Power Slot 2 | . . . . . . . . . . . . . . . . . . 1 . . . . . . . . . . 1 Propulsion Slot 4 | 1 . . 1 . . . . . . . . 1 . . . . . . . . 1 . . . . . . . . Utility Slot 10 | 1 . . 1 . . . . 1 . . 1 . . 1 . . . 2 . . 1 1 . . 1 . . . . Weapon Slot 3 | 1 . . 1 . . . . 1 . . . . . . . . . . . . . . . . . . . . . Core Integrity 27 | 1 . 3 2 . . . 2 . . . . . . . . . . . . . . . . . . . . . 19 Heat Dissipation 15 | 1 . . 2 . . . 2 2 . . . . . . . . . 4 . 2 . . . . . 2 . . . Energy Generation 1 | . . . . . . . 1 . . . . . . . . . . . . . . . . . . . . . . Matter Storage 1 | 1 . . . . . . . . . . . . . . . . . . . . . . . . . . . . . Mass Support 2 | 1 . . . . . . . 1 . . . . . . . . . . . . . . . . . . . . . Inventory Capacity 5 | 1 . . . . . . . . 1 . . 2 . . . . . . . . . . . 1 . . . . . Sight Range 2 | . . . . . . . . 1 . . . . . . . . . 1 . . . . . . . . . . . Terrain Scan Density 3 | . . . . . . . . . . . . . . . . . . 3 . . . . . . . . . . . Ranged Accuracy 6 | 1 . . 1 . . . 1 1 . . . . . . . . . . . . 1 . . . . . . . 1 Hack Attack % 2 | . . . . . . . . . . . . . . 1 . . . . . . . . 1 . . . . . . Hack Defense % 1 | . . . . . . . . . . . . . . 1 . . . . . . . . . . . . . . . KI Resistance % 4 | 1 . . 1 . . . 2 . . . . . . . . . . . . . . . . . . . . . . TH Resistance % 4 | 1 . . 1 . . . 2 . . . . . . . . . . . . . . . . . . . . . . KI Damage % 2 | . . . . . . . . 1 . . . . . 1 . . . . . . . . . . . . . . . EX Damage % 1 | . . . . . . . . . . . . . . . . . . . . . . . . . . . . . 1 Protomatter Created 6519 | . 114 6 148 2 . 21 275 183 282 28 . 236 570 166 135 . 16 549 183 78 182 286 125 275 57 169 246 60 2127 Integrity Restored 14548 | . 341 66 225 6 . 195 825 547 828 95 . 472 1442 677 158 . 15 997 452 335 457 962 546 1019 235 230 282 497 2644 Core 11935 | . 309 66 225 6 . 195 825 461 600 86 . 405 1119 572 111 . 15 831 293 323 301 759 546 730 225 138 228 331 2235 Parts 2613 | . 32 . . . . . . 86 228 9 . 67 323 105 47 . . 166 159 12 156 203 . 289 10 92 54 166 409 Protomatter Decayed 2682 | . . . 73 . . . . 37 5 16 . 53 119 . 114 . 11 172 31 48 739 36 . 458 52 . 147 127 444 Game ------ Seed LayeredMobileBoomstick Manual? 0 Play Time 03:36:00 Cumulative 488.5 hours Start 2021.06.29 @ 09:39:35 End 2021.06.29 @ 13:18:07 Sessions 1 Manual Loads 0 Difficulty Rogue Special Mode Winter2019/RPGLIKE Game No. 176 Rogue 176 Adventurer 0 Explorer 0 Win Type - Total 37 Types 24/2/6/2/2/0/0/0/1 Lore% 86 Gallery% 92 Achievement% 82 Wizard Run 0 Options --------- ASCII 0 Keyboard 0 Movement Mouse Keybinds 0 Fullscreen 2 Font 12/Smallcaps Map View 83x54 Tactical HUD 1 Map Filters NONE Filters NONE Steam X RUN: c9a0485d-5dcb-4207-abc9-7afc53471083